fUSD/lending_fUSD_20250811
["ID","MTS","AMOUNT","RATE_DAILY","PERIOD"]
[378585895,1754917858791,-720.34,0.00016891,2]
[378585897,1754917858804,-400.0,0.00016891,2]
[378585900,1754917858814,-470.98,0.00016891,2]
[378585902,1754917858826,-1133.42,0.00016891,2]
[378585904,1754917858838,-115.43675468,0.00016891,2]
[378585907,1754917858857,-633.90496819,0.00016891,2]
[378585929,1754917859065,-25.45827713,0.00016891,2]
[378585932,1754917859077,-400.0,0.00016891,2]
[378585934,1754917859088,-261.56206177,0.00016891,2]
[378586763,1754917984876,296.79,0.00015892,2]
[378586766,1754918050015,186.51,0.00015802,2]
[378586767,1754918091828,250.0,0.00015797,2]
[378586768,1754918105748,261.0,0.000136,2]
[378586769,1754918106147,256.0,0.0001478,2]
[378586770,1754918106515,250.0,0.0001597,2]
[378586771,1754918143499,193.47,0.00015791,2]
[378586777,1754918199521,170.0,0.00015791,7]
[378586783,1754918344483,189.16633724,0.00020384,30]
[378586784,1754918344615,189.16633724,0.00020466,30]
[378586785,1754918344735,189.16633724,0.00020548,30]
[378586786,1754918344879,189.16633724,0.0002063,30]
[378586787,1754918346863,189.16633724,0.00020712,30]
[378586788,1754918347039,189.16633724,0.00020795,30]
[378586789,1754918347167,189.16633724,0.00020877,30]
[378586790,1754918347352,189.16633724,0.00020959,30]
[378586801,1754918590899,1000.0,0.00015746,2]
[378586818,1754918637393,246.0,0.000126,2]
[378586819,1754918638139,241.0,0.0001378,2]
[378586820,1754918638859,236.0,0.0001497,2]
[378586821,1754918650344,284.38,0.00013699,2]
[378586844,1754918727726,-55.76961109,0.00016069,2]
[378586854,1754918750146,-65.27901495,0.00016069,2]
[378586858,1754918755684,312.64283804,0.00015,10]
[378586860,1754918756990,-41.96845096,0.00016069,2]
[378586894,1754918821475,334.0,0.00021,30]
[378586906,1754918835718,3607.89788048,0.00015,2]
[378586913,1754918843705,-76.7135616,0.00016069,2]
[378586917,1754918851350,-245.97132088,0.00016069,2]
[378586918,1754918865468,-3.15807852,0.00016069,2]
[378586919,1754918865497,-6.95084296,0.000161,2]
[378586920,1754918865540,-147.48915704,0.000161,2]
[378586921,1754918872340,-168.056,0.0001615,2]
[378586933,1754918879689,-62.944,0.0001615,2]
[378586934,1754918879727,-74.36322623,0.000162,5]
[378586979,1754919029493,182.14,0.00015769,2]
[378586987,1754919036381,-300.0,0.00016294,2]
[378586988,1754919036391,-115.80500019,0.00016385,2]
[378586989,1754919036444,-240.5519156,0.00016385,2]
[378586990,1754919036454,-831.9675662,0.00016388,2]
[378586991,1754919036464,-691.92354198,0.00016417,2]
[378586992,1754919036474,-691.92354199,0.00016507,2]
[378586993,1754919036483,-1200.0,0.00016515,2]
[378586994,1754919036493,-2597.9150734,0.00016516,2]
[378586995,1754919036502,-300.0,0.00016516,2]
[378586996,1754919036512,-5430.69136083,0.00016517,2]
[378586997,1754919036524,-1164.17653971,0.00016517,2]
[378586998,1754919036533,-165.35656216,0.00016518,2]
[378586999,1754919036543,-400.0,0.000166,6]
[378587000,1754919036552,-5698.18570013,0.00016606,2]
[378587001,1754919036621,-2464.527535,0.00016606,2]
[378587002,1754919036632,-502.48580365,0.00016606,2]
[378587021,1754919038382,-3249.9572433,0.00016606,2]
[378587022,1754919038392,-303.56,0.00016606,2]
[378587023,1754919038401,-231.28369723,0.00016606,2]
[378587024,1754919038410,-346.92554585,0.00016607,2]
[378587025,1754919038419,-112.66985578,0.00016607,2]
[378587026,1754919038430,-47.33014422,0.00016607,2]
[378587027,1754919038439,-239.98925774,0.00016615,2]
[378587028,1754919038449,-237.88838222,0.00016615,2]
[378587029,1754919038459,-400.0,0.00016616,2]
[378587030,1754919038469,-847.05,0.00016616,2]
[378587031,1754919038478,-385.42897582,0.00016616,2]
[378587032,1754919038535,-14.57102418,0.00016616,2]
[378587033,1754919038545,-970.86,0.00016616,2]
[378587035,1754919038555,-989.41389248,0.00016616,2]
[378587037,1754919038566,-176.10610752,0.00016616,2]
[378587039,1754919038576,-578.7,0.00016616,2]
[378587041,1754919038586,-1214.13,0.00016616,2]
[378587042,1754919038595,-400.0,0.00016616,2]
[378587044,1754919038605,-64.99780712,0.00016616,2]
[378587193,1754919040269,-335.00219288,0.00016616,2]
[378587195,1754919040278,-142.52859343,0.00016616,2]
[378587197,1754919040290,-362.5359403,0.00016616,2]
[378587199,1754919040301,-9.80454999,0.00016616,2]
[378587212,1754919040423,-390.19545001,0.00016616,2]
[378587214,1754919040433,-400.0,0.00016616,2]
[378587216,1754919040442,-737.6,0.00016616,2]
[378587218,1754919040453,-689.96,0.00016616,2]
[378587220,1754919040463,-400.0,0.00016616,2]
[378587221,1754919040473,-400.0,0.00016616,2]
[378587223,1754919040482,-400.0,0.00016616,2]
[378587225,1754919040492,-400.0,0.00016616,2]
[378587227,1754919040501,-499.72,0.00016616,2]
[378587229,1754919040510,-400.0,0.00016616,2]
[378587231,1754919040520,-603.04,0.00016616,2]
[378587233,1754919040529,-553.01,0.00016616,2]
[378587235,1754919040538,-630.66,0.00016616,2]
[378587236,1754919040547,-400.0,0.00016616,2]
[378587238,1754919040557,-400.0,0.00016616,2]
[378587240,1754919040566,-463.06206582,0.00016616,2]
[378587242,1754919040575,-650.08,0.00016616,2]
[378587244,1754919040584,-403.46,0.00016616,2]
[378587246,1754919040593,-1000.0,0.00016616,2]
[378587248,1754919040602,-448.31,0.00016616,2]
[378587249,1754919040611,-447.77347617,0.00016616,2]
[378587251,1754919040620,-400.0,0.00016616,2]
[378587253,1754919040630,-1318.55,0.00016616,2]
[378587255,1754919040639,-651.94,0.00016616,2]
[378587257,1754919040648,-400.0,0.00016616,2]
[378587259,1754919040657,-484.42,0.00016616,2]
[378587261,1754919040666,-400.0,0.00016616,2]
[378587263,1754919040675,-1809.15,0.00016616,2]
[378587264,1754919040686,-1070.26,0.00016616,2]
[378587266,1754919040695,-845.14,0.00016616,2]
[378587268,1754919040706,-455.48,0.00016616,2]
[378587270,1754919040715,-400.0,0.00016616,2]
[378587272,1754919040724,-583.21,0.00016616,2]
[378587273,1754919040734,-423.66,0.00016616,2]
[378587274,1754919040743,-533.96052169,0.00016616,2]
[378587275,1754919040752,-400.0,0.00016616,2]
[378587276,1754919040761,-931.75,0.00016616,2]
[378587277,1754919040771,-400.0,0.00016616,2]
[378587278,1754919040780,-915.06,0.00016616,2]
[378587279,1754919040789,-466.27,0.00016616,2]
[378587280,1754919040798,-973.63,0.00016616,2]
[378587281,1754919040807,-400.0,0.00016616,2]
[378587282,1754919040816,-517.91,0.00016616,2]
[378587283,1754919040826,-877.63,0.00016616,2]
[378587284,1754919040835,-400.0,0.00016616,2]
[378587285,1754919040844,-400.0,0.00016616,2]
[378587286,1754919040853,-596.36,0.00016616,2]
[378587287,1754919040862,-868.63,0.00016616,2]
[378587288,1754919040872,-956.72,0.00016616,2]
[378587289,1754919040882,-798.55,0.00016616,2]
[378587290,1754919040892,-927.86,0.00016616,2]
[378587291,1754919040902,-719.08,0.00016616,2]
[378587292,1754919040911,-231.29381874,0.00016616,2]
[378587293,1754919040920,-476.29,0.00016616,2]
[378587294,1754919040929,-152.02,0.00016616,2]
[378587295,1754919040938,-523.6,0.00016616,2]
[378587296,1754919040948,-400.0,0.00016616,2]
[378587297,1754919040959,-549.82,0.00016616,2]
[378587298,1754919040968,-918.42,0.00016616,2]
[378587299,1754919040978,-455.6,0.00016616,2]
[378587300,1754919040987,-400.0,0.00016616,2]
[378587301,1754919040997,-1301.76,0.00016616,2]
[378587302,1754919041006,-590.13,0.00016616,2]
[378587303,1754919041016,-400.0,0.00016616,2]
[378587304,1754919041025,-953.29,0.00016616,2]
[378587305,1754919041035,-535.15,0.00016616,2]
[378587306,1754919041045,-467.08,0.00016616,2]
[378587307,1754919041055,-419.08,0.00016616,2]
[378587308,1754919041064,-400.0,0.00016616,2]
[378587310,1754919041074,-865.17,0.00016616,2]
[378587311,1754919041083,-595.63,0.00016616,2]
[378587313,1754919041092,-468.93,0.00016616,2]
[378587315,1754919041101,-711.5,0.00016616,2]
[378587317,1754919041111,-460.48,0.00016616,2]
[378587319,1754919041120,-475.27,0.00016616,2]
[378587321,1754919041129,-1279.51,0.00016616,2]
[378587323,1754919041139,-1029.95,0.00016616,2]
[378587325,1754919041148,-443.03,0.00016616,2]
[378587327,1754919041157,-400.0,0.00016616,2]
[378587329,1754919041167,-400.0,0.00016616,2]
[378587331,1754919041176,-478.37,0.00016616,2]
[378587333,1754919041185,-830.96,0.00016616,2]
[378587335,1754919041195,-624.93,0.00016616,2]
[378587337,1754919041208,-1437.32,0.00016616,2]
[378587339,1754919041219,-694.42,0.00016616,2]
[378587341,1754919041230,-400.0,0.00016616,2]
[378587343,1754919041239,-695.19,0.00016616,2]
[378587345,1754919041248,-766.08,0.00016616,2]
[378587347,1754919041257,-240.66084978,0.00016616,2]
[378587349,1754919041267,-774.94,0.00016616,2]
[378587351,1754919041276,-1128.59,0.00016616,2]
[378587353,1754919041285,-970.441949,0.00016616,2]
[378587355,1754919041297,-183.59308474,0.00016616,2]
[378587357,1754919041306,-400.0,0.00016616,2]
[378587359,1754919041315,-1232.05,0.00016616,2]
[378587361,1754919041324,-400.0,0.00016616,2]
[378587363,1754919041333,-1159.06,0.00016616,2]
[378587365,1754919041342,-401.24095567,0.00016616,2]
[378587367,1754919041351,-892.13,0.00016616,2]
[378587369,1754919041360,-2292.23,0.00016616,2]
[378587371,1754919041370,-400.0,0.00016616,2]
[378587373,1754919041380,-157.25271,0.00016616,2]
[378587375,1754919041389,-505.98,0.00016616,2]
[378587377,1754919041398,-400.0,0.00016616,2]
[378587379,1754919041408,-169.276509,0.00016616,2]
[378587381,1754919041419,-400.0,0.00016616,2]
[378587383,1754919041429,-760.26,0.00016616,2]
[378587385,1754919041439,-724.62,0.00016616,2]
[378587387,1754919041448,-487.592906,0.00016616,2]
[378587389,1754919041459,-401.13,0.00016616,2]
[378587391,1754919041468,-954.572078,0.00016616,2]
[378587393,1754919041477,-925.77,0.00016616,2]
[378587395,1754919041487,-1544.61,0.00016616,2]
[378587397,1754919041496,-831.13,0.00016616,2]
[378587399,1754919041505,-989.74,0.00016616,2]
[378587401,1754919041514,-869.56,0.00016616,2]
[378587403,1754919041524,-609.24,0.00016616,2]
[378587405,1754919041533,-1123.71,0.00016616,2]
[378587407,1754919041542,-1083.62,0.00016616,2]
[378587409,1754919041552,-854.33,0.00016616,2]
[378587411,1754919041562,-400.0,0.00016616,2]
[378587413,1754919041571,-608.79,0.00016616,2]
[378587415,1754919041581,-427.06754311,0.00016616,2]
[378587679,1754919043940,-388.84007114,0.00016385,2]
[378587681,1754919043949,-666.00245689,0.00016616,2]
[378587683,1754919043960,-400.0,0.00016616,2]
[378587685,1754919043969,-938.65747197,0.00016616,2]
[378587688,1754919043988,-16.27252803,0.00016616,2]
[378587689,1754919043998,-401.46452036,0.00016616,2]
[378587691,1754919044007,-400.0,0.00016616,2]
[378587693,1754919044016,-492.5,0.00016616,2]
[378587695,1754919044026,-766.62,0.00016616,2]
[378587697,1754919044035,-735.9,0.00016616,2]
[378587699,1754919044044,-979.72,0.00016616,2]
[378587701,1754919044054,-400.0,0.00016616,2]
[378587703,1754919044064,-800.03,0.00016616,2]
[378587705,1754919044073,-400.0,0.00016616,2]
[378587707,1754919044083,-1316.34,0.00016616,2]
[378587709,1754919044092,-508.7,0.00016616,2]
[378587711,1754919044101,-989.0,0.00016616,2]
[378587713,1754919044111,-624.23,0.00016616,2]
[378587714,1754919044119,-400.0,0.00016616,2]
[378587715,1754919044128,-624.57,0.00016616,2]
[378587716,1754919044137,-1139.39,0.00016616,2]
[378587717,1754919044147,-400.0,0.00016616,2]
[378587718,1754919044156,-400.0,0.00016616,2]
[378587719,1754919044165,-400.0,0.00016616,2]
[378587720,1754919044174,-882.55,0.00016616,2]
[378587721,1754919044183,-642.02,0.00016616,2]
[378587722,1754919044193,-302.17948154,0.00016616,2]
[378587723,1754919044248,-229.22051846,0.00016616,2]
[378587724,1754919044257,-688.47,0.00016616,2]
[378587725,1754919044266,-1088.99,0.00016616,2]
[378587726,1754919044276,-2194.2,0.00016616,2]
[378587728,1754919044285,-920.2,0.00016616,2]
[378587730,1754919044296,-442.04,0.00016616,2]
[378587732,1754919044306,-409.90695257,0.00016616,2]
[378587733,1754919044315,-682.18,0.00016616,2]
[378587735,1754919044323,-839.07,0.00016616,2]
[378587738,1754919044332,-444.0,0.00016616,2]
[378587739,1754919044339,-471.03,0.00016616,2]
[378587741,1754919044347,-1767.08,0.00016616,2]
[378587743,1754919044354,-1090.09,0.00016616,2]
[378587745,1754919044365,-496.59,0.00016616,2]
[378587747,1754919044374,-803.3,0.00016616,2]
[378587749,1754919044383,-400.0,0.00016616,2]
[378587751,1754919044393,-1590.7,0.00016616,2]
[378587753,1754919044401,-545.48,0.00016616,2]
[378587755,1754919044411,-400.0,0.00016616,2]
[378587757,1754919044421,-469.04,0.00016616,2]
[378587759,1754919044430,-423.30073492,0.00016616,2]
[378587761,1754919044440,-400.0,0.00016616,2]
[378587763,1754919044450,-5118.02,0.00016616,2]
[378587765,1754919044462,-900.68,0.00016616,2]
[378587767,1754919044472,-1632.17,0.00016616,2]
[378587769,1754919044481,-576.19,0.00016616,2]
[378587771,1754919044491,-1233.77,0.00016616,2]
[378587773,1754919044500,-410.84,0.00016616,2]
[378587775,1754919044510,-555.59,0.00016616,2]
[378587777,1754919044519,-321.96743558,0.00016616,2]
[378587779,1754919044530,-221.68256442,0.00016616,2]
[378587781,1754919044540,-2317.27,0.00016616,2]
[378587783,1754919044549,-1208.96,0.00016616,2]
[378587785,1754919044558,-713.09650123,0.00016616,2]
[378587975,1754919046398,-218.78668809,0.00016286,2]
[378587977,1754919046407,-63.31970987,0.00016616,2]
[378591905,1754919111097,250.0,0.00015847,2]
[378591934,1754919162942,286.7518,0.00015969,2]
[378591938,1754919170281,239.0,0.000144,2]
[378591939,1754919170973,234.0,0.0001558,2]
[378591948,1754919187638,379.32,0.00015779,2]
[378591969,1754919249876,188.77,0.00015755,2]
[378591970,1754919258776,170.0,0.00015755,7]
[378591973,1754919285103,184.94266458,0.000157,2]
[378591980,1754919331612,198.68,0.00015729,2]
[378591981,1754919336455,166.08,0.00015706,2]
[378591982,1754919351646,239.81,0.00015706,2]
[378592028,1754919600834,1000.0,0.00015656,2]
[378592037,1754919658515,166.0,0.000161,3]
[378592038,1754919659598,9.58,0.000161,3]
[378592039,1754919659620,156.42,0.000161,3]
[378592040,1754919681000,68.0,0.000161,3]
[378592042,1754919703000,229.0,0.000134,2]
[378592043,1754919703402,225.0,0.0001458,2]
[378592044,1754919703792,220.0,0.0001577,2]
[378592045,1754919725387,-80.54572034,0.000161,3]
[378592047,1754919732926,277.86,0.00013699,2]
[378592048,1754919739488,-17.45427966,0.000161,3]
[378592049,1754919759165,223.88,0.00015597,2]
[378592051,1754919778756,-114.3774456,0.000161,3]
[378592053,1754919794704,-51.6225544,0.000161,3]
[378592054,1754919802666,-166.08913488,0.000161,3]
[378592055,1754919810219,-0.34086512,0.000161,3]
[378592056,1754919810254,-233.22913488,0.00016117,2]
[378592064,1754919859789,-152.19,0.00016036,2]
[378592071,1754919885438,2587.36656923,0.00024,120]
[378592083,1754920001052,-2.5378,0.00016036,2]
[378592084,1754920001093,-149.82805433,0.00016074,2]
[378592087,1754920059993,180.24,0.00015596,2]
[378592090,1754920092947,250.0,0.00015578,2]
[378592092,1754920110171,-16.68194567,0.00016074,2]
[378592093,1754920110235,-27866.83081719,0.00016074,2]
[378592094,1754920130483,-166.52186756,0.00016073,2]
[378592095,1754920130512,-167.99248042,0.00016073,2]
[378592096,1754920130579,-3239.09240681,0.00016074,2]
[378592097,1754920138071,-1009.77392928,0.00016074,2]
[378592098,1754920146141,-300.0,0.00016073,2]
[378592099,1754920146193,-2799.1183,0.00016074,2]
[378592100,1754920153197,178.54572034,0.00015974,2]
[378592101,1754920154760,-1596.40500664,0.00016074,2]
[378592113,1754920162310,-1895.9722,0.00016074,2]
[378592119,1754920186205,-1023.79,0.00016074,2]
[378592120,1754920194936,-400.0,0.00016074,2]
[378592121,1754920202784,-300.0,0.00016073,2]
[378592122,1754920203167,-642.26,0.00016073,2]
[378592123,1754920209088,-165.35656216,0.00016017,2]
[378592124,1754920209127,-69.28687568,0.00016064,2]
[378592125,1754920214092,280.38,0.00015576,2]
[378592126,1754920215925,-388.84007114,0.00016073,2]
[378592127,1754920223280,-152.92082199,0.00016064,2]
[378592128,1754920223309,-25.25842716,0.00016073,2]
[378592129,1754920224254,-143.6415017,0.00016073,2]
[378592130,1754920231222,-268.79135324,0.00016073,2]
[378592133,1754920231530,-120.0487179,0.00016073,2]
[378592134,1754920231540,-186.90704457,0.00016073,2]
[378592135,1754920231552,-313.09295543,0.00016073,2]
[378592136,1754920231561,-514.70004457,0.00016074,2]
[378592137,1754920231573,-399.60573942,0.00016074,2]
[378592138,1754920231616,-548.84600071,0.00016074,2]
[378592139,1754920231627,-332.59358378,0.00016074,2]
[378592140,1754920231715,-14769.45284997,0.00016074,2]
[378592141,1754920231726,-2227.92524837,0.00016074,2]
[378592142,1754920235327,216.0,0.000124,2]
[378592143,1754920235629,212.0,0.0001358,2]
[378592144,1754920235937,207.0,0.0001477,2]
[378592187,1754920236972,203.0,0.0001595,2]
[378592212,1754920237104,-936.79460021,0.00016074,2]
[378592220,1754920237135,-1730.81728026,0.00016074,2]
[378592227,1754920237168,-410.20180913,0.00016074,2]
[378592231,1754920237180,-2519.87973795,0.00016074,2]
[378592258,1754920237411,-434.59833749,0.00016074,2]
[378592260,1754920237423,-8732.24646193,0.00016074,2]
[378592262,1754920237434,-1194.74512167,0.00016074,2]
[378592264,1754920237446,-198709.38906453,0.00016074,2]
[378592267,1754920237457,-321.27038267,0.00016074,2]
[378592269,1754920237468,-3747.2188805,0.00016074,2]
[378592271,1754920237479,-1603.880468,0.00016074,2]
[378592273,1754920237491,-2379.607915,0.00016074,2]
[378592275,1754920237502,-1572.2882375,0.00016074,2]
[378592276,1754920237512,-1028.745,0.00016074,2]
[378592277,1754920237523,-1527.879834,0.00016074,2]
[378592278,1754920237535,-2996.25,0.00016074,2]
[378592279,1754920237546,-691.20796414,0.00016074,2]
[378592280,1754920237573,-2297.9204272,0.00016074,2]
[378592281,1754920237584,-957.43438092,0.00016074,2]
[378592282,1754920237639,-18000.17496948,0.00016074,2]
[378592283,1754920237650,-934.39075738,0.00016074,2]
[378592284,1754920237677,-667.59724551,0.00016074,2]
[378592344,1754920238436,-315.87,0.00016074,2]
[378592462,1754920239520,-600.3983998,0.00016074,2]
[378592476,1754920239638,-720.5983199,0.00016074,2]
[378592483,1754920239701,-2226.72604611,0.00016074,2]
[378592485,1754920239713,-4715.23565716,0.00016074,2]
[378592488,1754920239725,-2348.50177652,0.00016074,2]
[378592490,1754920239736,-348.83860836,0.00016074,2]
[378592492,1754920239748,-601.05,0.00016074,2]
[378592494,1754920239759,-358.90999999,0.00016074,2]
[378592497,1754920239775,-21416.56985147,0.00016074,2]
[378592499,1754920239787,-8511.80784,0.00016074,2]
[378592504,1754920239828,-19016.10395158,0.00016074,2]
[378592507,1754920239839,-89646.88549023,0.00016074,2]
[378592767,1754920242448,-1012.0,0.00016074,2]
[378592775,1754920242513,-325.85280712,0.00016074,2]
[378592777,1754920242524,-2803.45305203,0.00016074,2]
[378592780,1754920242535,-478.0120005,0.00016074,2]
[378592782,1754920242545,-748.0560267,0.00016074,2]
[378592784,1754920242556,-625.982,0.00016074,2]
[378592786,1754920242567,-10083.41550064,0.00016074,2]
[378592788,1754920242578,-467.16,0.00016074,2]
[378592794,1754920242632,-6402.79999,0.00016074,2]
[378592798,1754920242656,-6000.0,0.00016074,2]
[378592807,1754920242744,-688.25211553,0.00016074,2]
[378592809,1754920242755,-386.30600814,0.00016074,2]
[378592816,1754920242807,-574.68603364,0.00016074,2]
[378592825,1754920242886,-7643.04624533,0.00016074,2]
[378592827,1754920242897,-814.82264092,0.00016074,2]
[378593106,1754920245619,-6649.31534221,0.00016074,2]
[378593109,1754920245640,-317542.5,0.00016074,2]
[378593141,1754920245934,-148944.0804085,0.00016074,2]
[378593148,1754920245993,-9519.00000001,0.00016074,2]
[378593172,1754920246215,-6485.8599594,0.00016074,2]
[378593174,1754920246227,-1256.30623335,0.00016074,2]
[378593281,1754920247284,179.88542894,0.00016073,5]
[378593284,1754920247307,172.76866882,0.00016073,5]
[378593285,1754920247328,159.02921998,0.00016073,5]
[378593286,1754920247349,228.0022519,0.00016073,5]
[378593287,1754920247370,505.49165019,0.00016073,5]
[378593288,1754920247411,494.50834981,0.00016073,5]
[378593289,1754920247435,423.32641562,0.00016073,5]
[378593290,1754920247455,327.3424544,0.00016073,5]
[378593291,1754920247893,149.58396122,0.000159,5]
[378593292,1754920247917,333.48266236,0.000159,5]
[378593293,1754920247944,316.93337642,0.000159,5]
[378593597,1754920251498,188.77,0.00015576,2]
[378594702,1754920271101,1905.7200868,0.000159,2]
[378594703,1754920294550,-288.31668226,0.00016073,2]
[378594704,1754920301492,-173.52668226,0.00016073,2]
[378594705,1754920301555,-88.15663548,0.00016073,2]
[378594706,1754920302335,315.87,0.00015974,2]
[378594707,1754920308372,-400.0,0.00016073,2]
[378594708,1754920314022,1351.71,0.00015992,2]
[378594709,1754920315220,-400.0,0.00016073,2]
[378594710,1754920322156,-201.17,0.00016073,2]
[378594711,1754920322180,-198.83,0.00016073,2]
[378594712,1754920326437,152.01984567,0.00015996,2]
[378594713,1754920329708,-134.09,0.00016073,2]
[378594714,1754920329828,-165.91,0.00016073,2]
[378594715,1754920332717,492.53194503,0.00015974,2]
[378594717,1754920336591,-300.0,0.00016073,2]
[378594718,1754920336627,-43.50562494,0.00016073,2]
[378594719,1754920336676,-279.98875012,0.00016073,2]
[378594769,1754920362770,170.0,0.00015555,7]
[378594770,1754920372470,-608.54640015,0.00016073,2]
[378594771,1754920372498,-268.79135324,0.00016073,2]
[378594772,1754920373160,-13610.71517783,0.00016074,2]
[378594773,1754920379390,-388.1,0.00016074,2]
[378594775,1754920386524,-100.88,0.00016073,2]
[378594776,1754920386550,-199.12,0.00016073,2]
[378594777,1754920393356,-6891.74605726,0.00016074,2]
[378594779,1754920396078,788.98,0.00015992,2]
[378594782,1754920400227,-500.0,0.00016074,2]
[378594783,1754920407079,-300.0,0.00016074,2]
[378594785,1754920413885,-1200.0,0.00016074,2]
[378594786,1754920420709,-314.77,0.00016074,2]
[378594787,1754920427551,-213.19080987,0.00016074,2]
[378594788,1754920434875,-167.06,0.00016074,2]
[378594789,1754920442221,-177.68,0.00016074,2]
[378594791,1754920456308,1978.73,0.00015559,2]
[378594793,1754920463071,159.2146567,0.00015978,2]
[378594794,1754920469296,8750.65824996,0.00015978,2]
[378594795,1754920470883,2895.95611908,0.00015974,2]
[378594796,1754920470906,4874.75765494,0.00015974,2]
[378594797,1754920470928,15000.0,0.00015974,2]
[378594798,1754920470948,3659.10492598,0.00015974,2]
[378594802,1754920496359,11340.89507402,0.00015974,2]
[378594803,1754920496383,15000.0,0.00015974,2]
[378594804,1754920496406,15000.0,0.00015974,2]
[378594805,1754920496427,15000.0,0.00015974,2]
[378594806,1754920496449,15000.0,0.00015974,2]
[378594807,1754920496472,15000.0,0.00015974,2]
[378594808,1754920496705,10046.69912598,0.00015974,2]
[378594809,1754920497386,2694.70927387,0.00015974,2]
[378594810,1754920498104,654.34713263,0.00015978,2]
[378594818,1754920513855,1000.0,0.00015974,2]
[378594820,1754920532321,604.24446752,0.00015974,2]
[378594821,1754920532343,1895.75553248,0.00015974,2]
[378594822,1754920534412,3118.29734059,0.00015978,2]
[378594824,1754920538065,-170.58,0.00016073,2]
[378594826,1754920547364,-248.02,0.00016073,2]
[378594827,1754920547392,-131.4,0.00016073,2]
[378594828,1754920552127,163.14040963,0.00015978,2]
[378594829,1754920555608,-300.0,0.00016073,2]
[378594830,1754920555649,-78.18,0.00016073,2]
[378594831,1754920561750,240.4,0.00016001,2]
[378594832,1754920562953,-2.11,0.00016073,2]
[378594833,1754920562981,-1119.71,0.00016073,2]
[378594836,1754920573992,160.36231303,0.00015974,2]
[378594837,1754920576952,176.5,0.00015522,2]
[378594838,1754920578677,-200.31927519,0.00016074,2]
[378594843,1754920602459,347.7639748,0.00015974,2]
[378594845,1754920613702,8897.78042947,0.00015974,2]
[378594846,1754920613730,6312.89607053,0.00015974,2]
[378594848,1754920620270,2108.38,0.00015524,2]
[378594850,1754920623982,200.31927519,0.00015974,2]
[378594967,1754920647208,659.40175534,0.0002051,30]
[378594989,1754920653817,5419.44,0.0001549,2]
[378594990,1754920661783,958.96465428,0.00015974,2]
[378594991,1754920661811,11883.45934572,0.00015974,2]
[378595011,1754920679046,1000.0,0.00015974,2]
[378595012,1754920697386,2116.54065428,0.00015974,2]
[378595013,1754920697408,383.45934572,0.00015974,2]
[378595014,1754920703938,200.0,0.000159,5]
[378595015,1754920706731,-21.94734219,0.00016065,2]
[378595016,1754920714221,322.03,0.00013699,2]
[378595018,1754920748595,159.21465669,0.00015999,2]
[378595020,1754920754526,-15.64734219,0.00016065,2]
[378595021,1754920754548,-462.40531562,0.00016065,2]
[378595022,1754920764019,-257.3045676,0.00016065,2]
[378595023,1754920764044,-72.44081028,0.00016065,2]
[378595024,1754920769799,253.0,0.000114,2]
[378595025,1754920770411,248.0,0.0001258,2]
[378595026,1754920770521,243.0,0.0001377,2]
[378595027,1754920770616,238.0,0.0001495,2]
[378595028,1754920771937,-149.0,0.00016065,2]
[378595029,1754920771991,-2.0,0.00016065,2]
[378595030,1754920773792,13153.29599759,0.00015365,2]